bitfinex-derivatives/quotes_ETHF0:USTF0_20260131
["timestamp","ask_amount","ask_price","bid_price","bid_amount"]
[1769823949742,1.54564857,2705.8,2705.0,1.78129153]
[1769823950045,1.54564857,2705.8,2705.0,0.18512]
[1769823954749,1.54564857,2705.8,2705.0,1.78129153]
[1769823955441,1.54948144,2706.0,2705.2,1.59617153]
[1769823955645,4.14210241,2705.9,2705.2,1.59617153]
[1769823955845,4.14210241,2705.8,2705.2,1.59617153]
[1769823956048,1.54948144,2706.0,2705.2,1.59617153]
[1769823956243,4.14206931,2705.9,2705.2,1.59617153]
[1769823956442,4.14206931,2705.8,2705.2,1.59617153]
[1769823958344,5.68771788,2705.8,2705.2,1.59617153]
[1769823958649,1.54564857,2705.8,2705.2,1.59617153]
[1769823960548,1.54564857,2705.8,2705.1,0.18512]
[1769823962045,1.54564857,2705.6,2704.5,0.18516]
[1769823962350,1.54564857,2705.4,2704.5,0.18516]
[1769823962553,1.54564857,2705.4,2704.5,1.78133153]
[1769823966055,1.54564857,2705.4,2704.5,0.18516]
[1769823966659,1.58153822,2705.1,2704.2,3.7]
[1769823967457,1.58153822,2705.1,2704.2,5.36401221]
[1769823968355,1.58153822,2705.1,2704.2,3.7]
[1769823968657,1.58153822,2705.1,2704.1,0.18518]
[1769823972657,1.58153822,2705.1,2703.8,0.00387071]
[1769823972658,1.58153822,2704.8,2703.8,0.00387071]
[1769823980873,1.58153822,2704.5,2703.8,0.00387071]
[1769823981265,1.58153822,2704.5,2703.6,0.18522]
[1769823982275,1.58153822,2704.5,2703.6,0.18803758]
[1769823986678,1.58153822,2704.5,2703.6,0.00281758]
[1769823992382,1.58153822,2704.2,2703.2,1.84926221]
[1769823993487,1.58153822,2704.2,2703.2,1.85239102]
[1769823996887,1.52381204,2704.0,2703.2,1.85239102]
[1769823997087,1.52653327,2704.0,2703.2,1.85239102]
[1769823997292,1.52653327,2704.0,2703.2,0.18837881]
[1769824000195,1.60008081,2703.7,2703.0,3.0]
[1769824000391,1.60008081,2703.7,2703.0,2.36029711]
[1769824000697,1.60008081,2703.5,2703.0,2.35473631]
[1769824001196,1.60008081,2703.4,2703.0,0.68314662]
[1769824001399,1.60008081,2703.4,2702.6,1.73180996]
[1769824002497,1.60008081,2703.4,2702.6,1.73581636]
[1769824005002,1.60008081,2703.4,2702.6,0.1892964]
[1769824005199,1.60008081,2703.4,2702.6,0.0040064]
[1769824005399,1.3373948,2703.2,2702.2,1.54651996]
[1769824005606,1.3373948,2703.0,2702.2,1.54651996]
[1769824005902,1.3373948,2703.0,2701.9,0.18533]
[1769824005903,1.3373948,2703.0,2702.0,1.54651996]
[1769824006304,1.3373948,2703.0,2702.0,1.54923101]
[1769824006809,1.34654491,2702.8,2702.0,0.00271105]
[1769824007200,1.34654491,2702.8,2701.4,0.18537]
[1769824007201,1.27665751,2702.5,2701.4,1.73188996]
[1769824007502,4.15036679,2702.4,2701.6,1.54651996]
[1769824007707,14.79510835,2702.8,2701.6,1.54651996]
[1769824007708,10.39665751,2702.8,2701.6,1.54651996]
[1769824008110,10.39665751,2702.8,2701.6,1.55120017]
[1769824010312,1.28774965,2702.7,2701.6,1.55120017]
[1769824017318,1.28774965,2702.7,2701.6,1.73656017]
[1769824017620,5.61747187,2703.4,2701.6,1.73656017]
[1769824017621,1.52623106,2703.1,2701.9,1.54651996]
[1769824019318,1.52623106,2703.1,2702.1,1.54651996]
[1769824020618,1.55947896,2703.5,2702.3,1.73181996]
[1769824020820,1.55947896,2703.5,2702.5,1.73180996]
[1769824022523,1.55947896,2703.5,2702.5,0.18529]
[1769824022821,1.57598642,2703.3,2702.1,1.54651996]
[1769824024125,1.57598642,2703.3,2702.3,1.54651996]
[1769824024819,1.59257858,2703.5,2702.3,1.54651996]
[1769824025220,5.7548768,2703.4,2702.3,1.54651996]
[1769824025518,1.60008081,2703.4,2702.3,1.54651996]
[1769824026623,1.64982047,2703.2,2702.3,1.54651996]
[1769824027024,1.64982047,2703.5,2702.3,1.54651996]
[1769824027223,5.81415218,2703.4,2702.3,1.54651996]
[1769824027518,11.31737449,2703.6,2702.5,1.77365259]
[1769824027519,10.75522956,2703.6,2702.5,1.77365259]
[1769824027720,4.15876535,2703.5,2702.5,1.77365259]
[1769824027924,10.75522956,2703.6,2702.5,1.77365259]
[1769824028114,4.15876003,2703.5,2702.5,1.77365259]
[1769824028317,10.75522956,2703.6,2702.5,1.77365259]
[1769824028525,4.15950358,2703.5,2702.5,1.77365259]
[1769824028712,10.75522956,2703.6,2702.5,1.77365259]
[1769824028912,4.15947404,2703.5,2702.5,1.77365259]
[1769824029114,10.75522956,2703.6,2702.5,1.77365259]
[1769824029424,4.16136197,2703.5,2702.5,1.77365259]
[1769824029625,10.75522956,2703.6,2702.5,1.95895259]
[1769824029825,9.098,2703.6,2702.5,1.95895259]
[1769824030219,1.7514646,2703.8,2702.7,1.77365259]
[1769824030427,2.4364615,2704.0,2702.9,1.77365259]
[1769824030632,4.1633896,2703.9,2702.9,1.95892259]
[1769824030925,2.4364615,2704.0,2702.9,1.95892259]
[1769824031126,4.1633835,2703.9,2702.9,1.95892259]
[1769824031426,2.4364615,2704.0,2702.9,1.95892259]
[1769824031628,0.6849969,2704.0,2702.9,1.95892259]
[1769824031821,1.7514646,2703.9,2702.9,1.95892259]
[1769824032217,1.7514646,2703.7,2702.9,0.18527]
[1769824032422,1.7514646,2703.5,2702.7,1.77365259]
[1769824036128,1.7514646,2703.5,2702.4,1.77365259]
[1769824038227,1.7514646,2703.5,2702.3,1.95896259]
[1769824046125,4.15401034,2703.4,2702.3,1.95896259]
[1769824046325,1.7514646,2703.3,2702.3,1.95896259]
[1769824049534,1.7514646,2703.1,2702.3,1.95896259]
[1769824052042,1.7514646,2703.1,2701.8,1.77365259]
[1769824052343,1.7514646,2702.9,2701.8,1.77365259]
[1769824057646,2.21937449,2703.2,2701.8,1.77365259]
[1769824057847,13.03137931,2703.5,2702.2,1.81751227]
[1769824058035,5.90335503,2703.4,2702.2,1.81751227]
[1769824058241,6.03778289,2703.3,2702.2,1.81751227]
[1769824058440,1.88443268,2703.3,2702.2,1.81751227]
[1769824062153,1.88443268,2703.1,2702.2,1.81751227]
[1769824066455,1.88443268,2703.0,2702.2,1.81751227]
[1769824066656,1.88443268,2703.0,2702.1,0.18532]
[1769824068060,1.88443268,2702.7,2701.8,1.82861177]
[1769824069461,1.88443268,2702.7,2701.6,1.83329198]
[1769824073667,1.88443268,2702.4,2701.6,1.83329198]
[1769824073967,1.88443268,2702.4,2701.6,0.00468021]
[1769824074467,1.88443268,2702.4,2701.6,1.83329198]
[1769824074657,1.2190669,2702.5,2701.6,1.83329198]
[1769824074862,1.88443268,2702.7,2701.6,1.83329198]
[1769824075065,1.2190669,2702.8,2701.6,1.83329198]
[1769824075264,3.10349958,2702.8,2701.6,1.83329198]
[1769824075657,1.88443268,2702.7,2701.6,1.83329198]
[1769824080766,1.88443268,2702.4,2701.6,1.83329198]
[1769824081370,1.88443268,2702.4,2701.6,0.00468021]
[1769824085377,1.88443268,2702.3,2701.6,1.83329198]
[1769824085678,3.10349958,2702.4,2701.6,1.83329198]
[1769824087473,2.21937449,2702.8,2701.6,1.83329198]
[1769824087474,1.79717978,2702.6,2701.6,1.83329198]
[1769824089383,10.50655427,2703.1,2701.6,2.01864198]
[1769824089572,5.95173895,2703.0,2701.6,2.01864198]
[1769824089770,4.15455917,2702.9,2701.6,2.01864198]
[1769824090281,1.79717978,2703.0,2701.6,2.01864198]
[1769824090579,1.79717978,2702.9,2701.6,2.01864198]
[1769824092375,1.79717978,2702.9,2701.8,1.87041315]
[1769824093381,1.2190669,2703.0,2701.8,1.87041315]
[1769824094479,3.01624668,2703.0,2701.8,1.87041315]
[1769824098279,3.01624668,2703.0,2701.8,2.05575315]
[1769824105189,3.01624668,2703.0,2702.0,1.87041315]
[1769824105587,1.79717978,2703.0,2702.0,1.87041315]
[1769824106290,3.01624668,2703.0,2702.0,1.87041315]
[1769824106488,1.79717978,2702.9,2702.0,1.87041315]
[1769824121099,1.78717978,2702.9,2702.0,1.87041315]
[1769824122206,4.16047326,2702.8,2702.0,1.87041315]
[1769824122397,2.21937449,2703.1,2702.1,1.94579732]
[1769824122594,1.2190669,2703.4,2702.4,0.1853]
[1769824122790,1.2190669,2703.1,2702.4,0.1853]
[1769824123297,1.91790865,2703.0,2702.4,0.1853]
[1769824126302,1.91790865,2703.0,2702.1,1.94579732]
[1769824127996,1.91790865,2702.8,2701.6,1.95047753]
[1769824128506,1.91790865,2702.6,2701.6,1.95047753]
[1769824128913,11.23037449,2703.0,2701.6,2.13583753]
[1769824128914,1.91790865,2702.8,2701.6,2.13583753]
[1769824130306,9.011,2703.0,2702.0,1.94579732]
[1769824130307,1.91790865,2703.0,2702.0,1.94579732]
[1769824134815,1.90790865,2703.0,2702.0,1.94579732]
[1769824137416,1.91790865,2703.4,2702.2,1.94579732]
[1769824137715,1.91790865,2703.3,2702.2,1.94579732]
[1769824138012,6.06756134,2703.2,2702.2,1.94579732]
[1769824138209,1.91790865,2703.2,2702.2,1.94579732]
[1769824138910,1.91790865,2703.4,2702.2,1.94579732]
[1769824139115,4.14935507,2703.3,2702.2,1.94579732]
[1769824139316,1.91790865,2703.4,2702.2,1.94579732]
[1769824139517,6.06685623,2703.3,2702.2,1.94579732]
[1769824139818,1.91790865,2703.3,2702.2,1.94579732]
[1769824140517,1.91790865,2703.1,2702.2,1.94579732]
[1769824141612,1.91790865,2703.1,2702.1,0.18532]
[1769824142013,1.91790865,2702.9,2701.7,1.94579732]
[1769824142616,1.91790865,2702.7,2701.7,1.94579732]
[1769824148212,1.91790865,2702.7,2701.6,0.00468021]
[1769824148417,1.8326088,2702.5,2701.6,0.00468021]
[1769824149523,1.8326088,2702.3,2701.6,0.00468021]
[1769824149723,1.8326088,2702.3,2701.3,3.704]
[1769824149924,1.8326088,2702.1,2701.3,3.704]
[1769824150618,1.83688634,2702.1,2701.3,3.70704353]
[1769824151124,1.83688634,2702.1,2701.3,0.00304353]
[1769824151429,1.83688634,2702.1,2700.6,1.83710807]
[1769824151430,1.8326088,2701.9,2700.6,1.83710807]
[1769824152523,1.8326088,2701.9,2700.6,1.841462]
[1769824155621,1.8326088,2701.9,2700.6,1.831462]
[1769824158427,1.8326088,2701.9,2700.6,2.016882]
[1769824161521,1.83688634,2702.1,2701.0,1.83710807]
[1769824162731,0.00427754,2702.1,2701.2,1.83710807]
[1769824163222,0.00427754,2702.1,2700.9,2.173]
[1769824163223,0.00427754,2702.1,2701.4,1.83710807]
[1769824165732,0.00427754,2702.1,2701.4,2.02247807]
[1769824165928,1.8326088,2702.4,2701.7,1.83710807]
[1769824166234,1.8326088,2703.0,2701.7,1.83710807]
[1769824167035,1.83530117,2703.0,2701.7,1.83710807]
[1769824171427,1.8326088,2702.8,2701.6,2.02246807]
[1769824172128,1.8326088,2702.8,2701.0,0.1854]
[1769824172431,1.8326088,2702.5,2701.1,1.83710807]
[1769824172637,1.8326088,2702.3,2701.1,1.83710807]
[1769824176442,1.8326088,2702.6,2701.1,1.83710807]
[1769824177340,1.94631845,2702.4,2701.1,1.83710807]
[1769824182146,10.98231845,2702.4,2701.1,1.83710807]
[1769824182338,1.91024116,2702.3,2701.1,1.83710807]
[1769824183042,1.91024116,2702.3,2701.1,2.02249807]
[1769824184346,2.19795903,2702.7,2701.1,2.02249807]
[1769824184538,2.20213978,2703.4,2702.3,1.93404682]
[1769824184738,4.39845084,2705.5,2703.0,1.21915407]
[1769824184932,11.9999983,2705.6,2703.5,1.21915407]
[1769824185133,52.7999983,2705.6,2703.6,0.32315024]
[1769824185343,3.70349237,2705.1,2703.3,0.18524]
[1769824185642,3.70349237,2705.0,2703.3,0.18846891]
[1769824185948,3.70349237,2704.7,2703.3,0.00322891]
[1769824186338,2.04876024,2704.4,2703.3,0.00322891]
[1769824186741,2.04876024,2704.3,2703.3,0.00322891]
[1769824187240,11.9999983,2704.2,2703.3,0.00322891]
[1769824187446,2.10820973,2704.1,2703.3,0.00322891]
[1769824187846,2.10820973,2703.8,2703.3,0.00322891]
[1769824188247,5.81532131,2703.7,2703.3,0.00322891]
[1769824190140,2.12011638,2703.6,2703.3,0.00322891]
[1769824190342,5.82360875,2703.6,2703.3,0.00322891]
[1769824190547,2.12011638,2703.5,2703.3,0.00322891]
[1769824192342,2.12213625,2703.4,2702.5,0.20832531]
[1769824193443,2.12213625,2703.4,2702.5,0.21294311]
[1769824193647,2.11610221,2704.5,2702.5,0.21294311]
[1769824193848,2.11610221,2704.3,2702.5,0.21294311]
[1769824194052,2.11610221,2704.2,2702.5,0.21294311]
[1769824194346,2.11208245,2704.1,2702.5,0.21294311]
[1769824194541,2.11208245,2704.0,2702.5,0.21294311]
[1769824194746,2.11208245,2703.9,2702.5,0.21294311]
[1769824194944,2.11208245,2703.8,2702.5,0.21294311]
[1769824195143,2.11208245,2703.7,2702.5,0.21294311]
[1769824195337,14.11208075,2703.7,2702.5,0.21294311]
[1769824195535,2.07758103,2703.6,2702.5,0.21294311]
[1769824195745,2.07758103,2703.6,2702.6,0.13669958]
[1769824195949,14.07757933,2703.6,2702.6,0.13669958]
[1769824197444,14.07757933,2703.6,2702.6,0.32198958]
[1769824198853,2.06238447,2703.5,2702.6,0.32198958]
[1769824199656,2.06238447,2703.5,2702.7,0.18528]
[1769824199853,2.05546907,2703.8,2702.8,2.172]
[1769824200354,10.303,2705.0,2703.3,2.11928682]
[1769824200555,3.70349237,2705.0,2703.3,2.11928682]
[1769824200850,3.348,2705.2,2703.3,2.11928682]
[1769824200851,3.70349237,2704.7,2703.3,2.11928682]
[1769824201055,3.70349237,2704.8,2703.5,1.93404682]
[1769824201249,11.9999983,2704.6,2703.5,1.93404682]
[1769824201450,3.70349237,2704.6,2703.5,1.93404682]
[1769824201654,3.70349237,2704.4,2703.5,1.93404682]
[1769824201846,11.9999983,2704.8,2703.4,0.18523]
[1769824202051,11.9999983,2704.3,2703.4,0.18523]
[1769824202359,1.91024116,2704.4,2703.4,0.18523]
[1769824202555,1.91024116,2704.1,2703.4,0.18523]
[1769824202957,5.61373353,2704.0,2703.4,0.18523]
[1769824203257,1.91024116,2704.0,2703.4,0.18523]
[1769824203458,5.61373353,2703.9,2703.4,0.18523]
[1769824203658,1.91024116,2703.9,2703.4,0.18523]
[1769824203857,5.61373353,2703.9,2703.4,0.18523]
[1769824204761,1.91024116,2703.8,2703.4,0.18523]
[1769824205358,5.61373353,2703.8,2703.4,0.18523]
[1769824205859,5.61373353,2703.7,2703.4,0.18523]
[1769824206059,1.53876116,2703.6,2703.4,0.18523]
[1769824206456,3.70349237,2703.5,2702.8,4.03540978]
[1769824206759,1.53876116,2703.6,2702.8,4.03540978]
[1769824207155,1.53876116,2703.6,2703.4,0.18523]
[1769824207461,1.53876116,2703.6,2702.8,4.22067978]
[1769824208551,1.77627091,2703.4,2702.8,2.35727]
[1769824209060,5.47976328,2703.4,2702.8,2.35727]
[1769824210548,3.12906237,2703.4,2702.9,1.95206967]
[1769824210753,1.77627091,2704.9,2702.9,1.95206967]
[1769824210955,1.77627091,2703.9,2702.9,1.95206967]
[1769824214067,1.77627091,2703.9,2703.0,1.95205967]
[1769824214271,13.77626921,2703.8,2703.0,8.59078954]
[1769824214563,1.77627091,2703.8,2703.0,8.59078954]
[1769824215564,1.77627091,2703.8,2703.0,9.80884095]
[1769824216866,11.9999983,2703.7,2703.1,1.76679967]
[1769824218267,11.9999983,2703.7,2703.1,8.40552954]
[1769824219269,1.77627091,2703.6,2703.1,6.63872987]
[1769824219469,1.77627091,2703.6,2703.0,6.82398987]
[1769824220370,1.77627091,2703.4,2703.0,6.82398987]
[1769824220670,1.77627091,2703.6,2703.0,6.82398987]
[1769824222772,1.77627091,2703.4,2703.0,6.82398987]
[1769824226578,11.9999983,2704.6,2703.0,6.82398987]
[1769824226780,1.77627091,2704.4,2703.0,6.82398987]
[1769824227268,1.77627091,2704.2,2703.0,6.82398987]
[1769824229888,1.77627091,2704.2,2703.0,0.18526]
[1769824230789,1.77627091,2704.0,2703.0,0.18526]
[1769824231181,1.77627091,2703.8,2703.0,0.18526]
[1769824232887,1.77627091,2703.6,2703.0,0.18526]
[1769824233386,1.21805141,2704.1,2703.0,0.18526]
[1769824233387,1.77627091,2703.4,2703.0,0.18526]
[1769824233788,1.77627091,2703.2,2703.0,0.18526]
[1769824233989,1.780604,2703.2,2703.0,0.18526]
[1769824234589,1.780604,2703.2,2702.7,6.80503066]
[1769824234590,1.77627091,2703.1,2702.7,6.80503066]
[1769824234789,1.77627091,2703.1,2702.5,0.0046178]
[1769824234990,11.9999983,2703.0,2702.5,0.0046178]
[1769824235188,12.18554279,2703.0,2702.5,0.0046178]
[1769824236897,12.17554279,2703.0,2702.5,0.0046178]
[1769824239801,11.9899983,2703.0,2702.5,2.14020988]
[1769824239999,3.703,2704.2,2702.7,2.16199223]
[1769824240200,7.52215595,2704.1,2702.7,2.16199223]
[1769824240502,3.74454709,2704.0,2702.7,2.16199223]
[1769824240701,3.777,2704.1,2702.7,2.16199223]
[1769824240903,3.74527266,2704.0,2702.7,2.16199223]
[1769824241196,3.78168982,2704.1,2702.7,2.16199223]
[1769824241403,3.74556428,2704.0,2702.7,2.16199223]
[1769824241605,3.78168982,2704.1,2702.7,2.16199223]
[1769824241806,12.68911563,2704.0,2702.7,2.16199223]
[1769824241997,0.45791615,2703.9,2702.7,2.16199223]
[1769824243195,0.45791615,2703.9,2703.0,2.32085208]
[1769824243402,0.45791615,2703.9,2703.3,2.13559208]
[1769824247404,0.96457967,2704.1,2703.3,2.13559208]
[1769824247605,2.20205118,2704.9,2703.6,2.13559208]
[1769824247803,33.06652313,2705.1,2703.6,2.13559208]
[1769824247804,0.95988985,2704.8,2703.6,2.13559208]
[1769824248202,0.95988985,2704.8,2703.6,2.12559208]
[1769824248611,0.96436122,2704.8,2703.6,2.12559208]
[1769824254312,0.96436122,2704.8,2703.6,2.31081208]
[1769824254815,0.96436122,2704.8,2703.7,2.13559208]
[1769824260721,0.96436122,2704.8,2703.6,0.18522]
[1769824261018,0.96436122,2704.8,2703.6,2.32081208]
[1769824261616,0.96436122,2704.8,2703.6,0.18522]
[1769824261823,0.96436122,2704.8,2703.2,2.13559208]
[1769824263724,2.08054038,2704.6,2703.2,2.13559208]
[1769824268925,2.08054038,2704.6,2703.2,2.32084208]
[1769824273220,2.95645105,2704.4,2703.0,2.84081514]
[1769824277221,2.9836541,2704.2,2703.0,2.84081514]
[1769824277721,2.9836541,2704.1,2703.0,2.84081514]
[1769824288436,2.9836541,2704.5,2703.0,3.02607514]
[1769824288824,2.9836541,2704.5,2703.1,2.84081514]
[1769824293738,2.9836541,2704.5,2703.3,2.84081514]
[1769824293929,2.9836541,2704.5,2703.4,2.171]
[1769824294129,2.9836541,2704.5,2703.5,2.84081514]
[1769824295340,2.9836541,2704.5,2703.5,3.02604514]
[1769824302142,2.9836541,2704.5,2703.3,3.53788552]
[1769824302845,2.9836541,2704.5,2703.1,3.53788552]
[1769824309246,2.19782308,2704.7,2703.1,4.75542243]
[1769824309441,3.49000585,2704.6,2703.3,3.72312552]
[1769824309641,3.49000585,2704.6,2703.6,3.53788552]
[1769824309842,3.49000585,2704.6,2703.3,3.72312552]
[1769824317253,3.30770118,2704.4,2703.3,3.72312552]
[1769824341085,3.30770118,2704.4,2703.3,3.53788552]
[1769824341282,3.44998604,2704.1,2703.1,3.55340953]
[1769824341480,3.44998604,2703.9,2703.1,3.55340953]
[1769824348891,8.94,2704.0,2703.1,3.55340953]
[1769824349389,12.40377149,2704.0,2703.1,3.55340953]
[1769824349579,8.94,2704.0,2703.1,3.55340953]
[1769824352187,12.40308666,2704.0,2703.1,3.55340953]
[1769824353192,3.46308666,2703.9,2703.1,3.55340953]
[1769824357496,3.47204665,2704.2,2703.1,3.55340953]
[1769824357694,3.47204665,2704.0,2703.1,3.55340953]
[1769824360996,3.46803484,2703.9,2702.8,3.8320315]
[1769824370005,12.19639195,2703.8,2702.8,3.8320315]
[1769824376708,5.41700546,2704.2,2702.8,3.8320315]
[1769824376908,3.21005208,2704.0,2702.8,3.8320315]
[1769824381509,3.21005208,2704.0,2702.9,3.8320315]
[1769824388515,3.21005208,2704.0,2702.5,6.73214504]
[1769824388715,2.20698195,2702.8,2701.4,12.85217242]
[1769824388916,1.21860832,2703.8,2699.7,9.56946779]
[1769824388917,3.42559027,2702.5,2699.7,11.74146779]
[1769824389223,0.00825856,2702.3,2699.7,2.172]
[1769824389421,0.00825856,2702.1,2700.2,3.69920001]
[1769824389614,4.09948152,2702.0,2700.3,3.39060832]
[1769824389814,0.00451036,2702.1,2701.1,3.69920001]
[1769824390318,0.00451036,2702.1,2700.3,3.39060832]
[1769824390319,0.00451036,2702.1,2701.6,3.69920001]
[1769824390511,0.00451036,2702.1,2701.9,3.88227269]
[1769824390711,2.172,2702.4,2701.9,3.88227269]
[1769824391314,0.26703541,2702.9,2701.9,7.5814727]
[1769824391520,4.09075976,2702.8,2701.9,3.88227269]
[1769824391721,0.00456421,2702.9,2701.9,3.88227269]
[1769824391929,0.00456421,2702.9,2702.1,3.75288426]
[1769824392114,0.27159962,2702.9,2702.1,3.75632237]
[1769824392314,0.27159962,2702.9,2701.1,2.172]
[1769824392315,0.27159962,2702.9,2701.9,3.75288426]
[1769824393319,0.27159962,2702.9,2701.9,3.75763254]
[1769824399929,0.27159962,2702.9,2701.1,2.172]
[1769824399930,0.32581888,2702.7,2701.7,3.72349253]
[1769824401022,0.32581888,2702.7,2701.7,3.72755756]
[1769824404330,4.03029116,2702.6,2701.7,3.72755756]
[1769824405033,4.03029116,2702.6,2701.8,3.72325639]
[1769824405532,0.30788491,2702.5,2701.8,3.72325639]
[1769824406031,0.30788491,2702.5,2701.7,0.00406503]
[1769824406433,0.30788491,2702.5,2700.8,0.18541]
[1769824407434,0.30788491,2702.5,2700.8,0.18888469]
[1769824407833,0.30788491,2702.5,2700.9,3.72220093]
[1769824412236,3.704,2702.6,2701.1,3.72220093]
[1769824413632,0.18528,2702.7,2701.1,3.72220093]
[1769824413833,0.00456421,2702.9,2701.3,3.72220093]
[1769824414135,8.95,2702.7,2701.3,3.72220093]
[1769824416140,4.15140389,2702.6,2701.3,3.72220093]
[1769824416338,8.95,2702.7,2701.3,3.72220093]
[1769824416539,4.15140814,2702.6,2701.3,3.72220093]
[1769824416742,8.95,2702.7,2701.3,3.72220093]
[1769824417040,4.15051061,2702.6,2701.3,3.72220093]
[1769824417338,4.15051061,2702.5,2701.3,3.72220093]
[1769824417538,8.95,2702.7,2701.3,3.72220093]
[1769824417740,4.1553759,2702.6,2701.3,3.72220093]
[1769824417938,4.1553759,2702.5,2701.3,3.72220093]
[1769824418130,4.16261983,2702.4,2701.3,3.72220093]
[1769824418332,2.19676718,2702.6,2701.3,3.72220093]
[1769824418534,6.359348,2702.6,2701.3,3.72220093]
[1769824423846,9.7230303,2702.6,2701.3,3.72220093]
[1769824424037,4.16258082,2702.5,2701.3,3.72220093]
[1769824427043,13.18858082,2702.5,2701.3,3.72220093]
[1769824427246,4.16258082,2702.4,2701.3,3.72220093]
[1769824428345,11.22276718,2702.6,2701.3,3.72220093]
[1769824428547,4.15449039,2702.5,2701.3,3.72220093]
[1769824428745,4.15449039,2702.4,2701.3,3.72220093]
[1769824428947,11.22276718,2702.6,2701.3,3.72220093]
[1769824429244,4.1544114,2702.5,2701.3,3.72220093]
[1769824429445,4.1544114,2702.4,2701.3,3.72220093]
[1769824429645,11.22276718,2702.6,2701.3,3.72220093]
[1769824429846,4.15445544,2702.5,2701.3,3.72220093]
[1769824430047,4.15445544,2702.4,2701.3,3.72220093]
[1769824430247,11.22276718,2702.6,2701.3,3.72220093]
[1769824430457,4.15438151,2702.5,2701.3,3.72220093]
[1769824430748,4.15438151,2702.4,2701.3,3.72220093]
[1769824430956,2.72309166,2702.5,2701.3,3.72220093]
[1769824431148,4.15437836,2702.4,2701.3,3.72220093]
[1769824431350,2.72309166,2702.5,2701.3,3.72220093]
[1769824431653,4.15439434,2702.4,2701.3,3.72220093]
[1769824431863,2.72309166,2702.5,2701.3,3.72220093]
[1769824432059,4.15439382,2702.4,2701.3,3.72220093]
[1769824432347,2.72309166,2702.5,2701.3,3.72220093]
[1769824432549,4.15434226,2702.4,2701.3,3.72220093]
[1769824432748,2.72309166,2702.5,2701.3,3.72220093]
[1769824432951,4.15434756,2702.4,2701.3,3.72220093]
[1769824433252,2.72309166,2702.5,2701.3,3.72220093]
[1769824433442,4.15445908,2702.4,2701.3,3.72220093]
[1769824433643,2.72309166,2702.5,2701.3,3.72220093]
[1769824433844,4.15446865,2702.4,2701.3,3.72220093]
[1769824434050,2.72309166,2702.5,2701.3,3.72220093]
[1769824434247,4.15458231,2702.4,2701.3,3.72220093]
[1769824434447,2.72309166,2702.5,2701.3,3.72220093]
[1769824434644,4.15458441,2702.4,2701.3,3.72220093]
[1769824434846,2.72309166,2702.5,2701.3,3.72220093]
[1769824435046,4.15457802,2702.4,2701.3,3.72220093]
[1769824435253,2.72309166,2702.5,2701.3,3.72220093]
[1769824435452,4.15589896,2702.4,2701.3,3.72220093]
[1769824435661,2.72309166,2702.5,2701.3,3.72220093]
[1769824435849,4.15709864,2702.4,2701.3,3.72220093]
[1769824436050,2.72309166,2702.5,2701.3,3.72220093]
[1769824436251,4.15728963,2702.4,2701.3,3.72220093]
[1769824436440,2.72309166,2702.5,2701.3,3.72220093]
[1769824436649,4.1564064,2702.4,2701.3,3.72220093]
[1769824436948,2.72309166,2702.5,2701.3,3.72220093]
[1769824437151,4.15562564,2702.4,2701.3,3.72220093]
[1769824437348,2.72309166,2702.5,2701.3,3.72220093]
[1769824437548,4.1560034,2702.4,2701.3,3.72220093]
[1769824437752,2.72309166,2702.5,2701.3,3.72220093]
[1769824437955,4.15602721,2702.4,2701.3,3.72220093]
[1769824438155,2.72309166,2702.5,2701.3,3.72220093]
[1769824438357,4.15657034,2702.4,2701.3,3.72220093]
[1769824438554,2.72309166,2702.5,2701.3,3.72220093]
[1769824438753,4.15656941,2702.4,2701.3,3.72220093]
[1769824438949,2.72309166,2702.5,2701.3,3.72220093]
[1769824439150,4.15657529,2702.4,2701.3,3.72220093]
[1769824439350,2.72309166,2702.5,2701.3,3.72220093]
[1769824439557,4.15723527,2702.4,2701.3,3.72220093]
[1769824439753,2.72309166,2702.5,2701.3,3.72220093]
[1769824439954,4.1572339,2702.4,2701.3,3.72220093]
[1769824440154,2.72309166,2702.5,2701.3,3.72220093]
[1769824440361,4.15799624,2702.4,2701.3,3.72220093]
[1769824440659,2.72309166,2702.5,2701.3,3.72220093]
[1769824440863,4.15819031,2702.4,2701.3,3.72220093]
[1769824441061,2.72309166,2702.5,2701.3,3.72220093]
[1769824441262,4.15900109,2702.4,2701.3,3.72220093]
[1769824441561,2.72309166,2702.5,2701.3,3.72220093]
[1769824441749,4.15906338,2702.4,2701.3,3.72220093]
[1769824441952,2.72309166,2702.5,2701.3,3.72220093]
[1769824442151,4.15906013,2702.4,2701.3,3.72220093]
[1769824442357,2.72309166,2702.5,2701.3,3.72220093]
[1769824442549,4.1605801,2702.4,2701.3,3.72220093]
[1769824442752,2.72309166,2702.5,2701.3,3.72220093]
[1769824442953,4.16057724,2702.4,2701.3,3.72220093]
[1769824443157,4.1625328,2702.3,2701.3,3.72220093]
[1769824443462,2.72309166,2702.5,2701.3,3.72220093]
[1769824443762,4.16253358,2702.4,2701.3,3.72220093]
[1769824443961,4.16253358,2702.3,2701.3,3.72220093]
[1769824444261,2.72309166,2702.5,2701.3,3.72220093]
[1769824444446,4.1625547,2702.4,2701.3,3.72220093]
[1769824444651,2.19676718,2703.0,2702.1,3.54566277]
[1769824444855,6.00574322,2703.1,2702.1,3.54566277]
[1769824445060,3.80897604,2703.1,2702.1,3.54566277]
[1769824455858,2.6678653,2702.9,2702.1,3.54566277]
[1769824457168,2.6678653,2702.9,2701.9,2.61629941]
[1769824457463,2.66330109,2702.7,2701.3,2.61629941]
[1769824458768,2.66330109,2702.7,2701.5,2.61629941]
[1769824475379,2.66330109,2702.5,2701.3,2.61629941]
[1769824475583,2.66330109,2702.3,2701.3,2.61629941]
[1769824485585,2.06139903,2702.5,2701.6,2.15905802]
[1769824485988,2.06139903,2702.5,2701.3,2.15905802]
[1769824489297,4.09382493,2702.4,2701.3,2.15905802]
[1769824489497,2.06139903,2702.3,2701.3,2.15905802]
[1769824498599,2.19676718,2702.6,2701.3,2.15905802]
[1769824498796,15.12075019,2702.5,2701.3,2.15905802]
[1769824498996,2.06139903,2702.4,2701.3,2.15905802]
[1769824516324,1.81042836,2702.2,2701.3,2.15905802]
[1769824525312,1.81042836,2702.2,2701.2,0.18538]
[1769824525617,1.81042836,2702.0,2701.1,1.77312226]
[1769824525821,1.81042836,2702.0,2700.8,0.00347469]
[1769824526126,1.81042836,2701.8,2700.8,1.77659695]
[1769824531124,1.81042836,2701.8,2700.8,0.00347469]
[1769824535634,1.81042836,2701.8,2700.8,1.77659695]
[1769824539339,1.81042836,2701.8,2700.8,0.00347469]
[1769824544643,8.928,2701.9,2700.8,0.00347469]
[1769824544644,1.48352896,2701.6,2700.8,0.00347469]
[1769824550242,1.48352896,2701.6,2700.1,1.71611609]
[1769824551139,1.48352896,2701.6,2700.1,1.72061613]
[1769824552435,1.48352896,2701.4,2700.1,1.72061613]
[1769824553545,1.48352896,2701.4,2700.2,1.59329327]
[1769824553747,1.48352896,2701.4,2700.5,1.59329327]
[1769824555043,1.48352896,2701.3,2700.5,1.59329327]
[1769824555238,1.48352896,2701.3,2700.2,1.22068349]